[Event "Early-Titled-Tuesday-Blitz-October-24-2023"]
[Site "Chess.com"]
[Date "2023.10.24"]
[Round "11"]
[White "PinaSoprano"]
[Black "UK_23"]
[Result "0-1"]
[WhiteElo "2235"]
[BlackElo "2400"]
[TimeControl "180+1"]
[EndTime "10:00:38 PDT"]
[Termination "UK_23 won by resignation"]

1. d4 {[%clk 0:03:00.9]} 1... d5 {[%clk 0:02:57]} 2. c4 {[%clk 0:03:01.2]} 2...
e6 {[%clk 0:02:57.3]} 3. Nf3 {[%clk 0:03:00.5]} 3... Nf6 {[%clk 0:02:57.8]} 4.
Nc3 {[%clk 0:02:59.7]} 4... Be7 {[%clk 0:02:57.3]} 5. Bg5 {[%clk 0:02:58.8]}
5... O-O {[%clk 0:02:57.7]} 6. e3 {[%clk 0:02:59.1]} 6... b6 {[%clk 0:02:58.1]}
7. cxd5 {[%clk 0:02:58.9]} 7... Nxd5 {[%clk 0:02:58.2]} 8. h4 {[%clk 0:02:51.6]}
8... Nxc3 {[%clk 0:02:42]} 9. bxc3 {[%clk 0:02:50.4]} 9... c5 {[%clk 0:02:42.3]}
10. Bd3 {[%clk 0:02:49.2]} 10... Ba6 {[%clk 0:02:39.9]} 11. Bxe7 {[%clk
0:02:40.1]} 11... Qxe7 {[%clk 0:02:39.1]} 12. Bxh7+ {[%clk 0:02:26.5]} 12...
Kxh7 {[%clk 0:02:31.7]} 13. Ng5+ {[%clk 0:02:25.7]} 13... Kg8 {[%clk 0:02:12]}
14. Qh5 {[%clk 0:02:21.7]} 14... Bd3 {[%clk 0:02:12.6]} 15. e4 {[%clk
0:02:18.7]} 15... Bxe4 {[%clk 0:02:12.7]} 16. Nxe4 {[%clk 0:02:18.6]} 16... Nd7
{[%clk 0:02:11]} 17. O-O {[%clk 0:02:11]} 17... cxd4 {[%clk 0:02:10.1]} 18. cxd4
{[%clk 0:02:04]} 18... Nf6 {[%clk 0:02:10.4]} 19. Qg5 {[%clk 0:02:03.9]} 19...
Rfe8 {[%clk 0:02:08.7]} 20. Ng3 {[%clk 0:02:02.6]} 20... Nd5 {[%clk 0:02:06]}
21. Qg4 {[%clk 0:02:01.3]} 21... Rad8 {[%clk 0:02:02.9]} 22. Nh5 {[%clk
0:01:58.8]} 22... f5 {[%clk 0:01:59.7]} 23. Qg3 {[%clk 0:01:54.4]} 23... Nf6
{[%clk 0:01:53]} 24. Nf4 {[%clk 0:01:50.8]} 24... Rxd4 {[%clk 0:01:46.8]} 25.
Rfe1 {[%clk 0:01:48]} 25... Re4 {[%clk 0:01:45.4]} 26. f3 {[%clk 0:01:46.7]}
26... Rxe1+ {[%clk 0:01:41.3]} 27. Rxe1 {[%clk 0:01:47.6]} 27... e5 {[%clk
0:01:39.4]} 28. Ng6 {[%clk 0:01:47]} 28... Qc5+ {[%clk 0:01:37.8]} 29. Kh1
{[%clk 0:01:41.9]} 29... e4 {[%clk 0:01:30.4]} 30. fxe4 {[%clk 0:01:30.9]} 30...
Nxe4 {[%clk 0:01:20.3]} 31. Rxe4 {[%clk 0:01:09.1]} 31... fxe4 {[%clk
0:01:12.4]} 0-1

[Event "Early-Titled-Tuesday-Blitz-October-24-2023"]
[Site "Chess.com"]
[Date "2023.10.24"]
[Round "11"]
[White "Malikova777"]
[Black "ShahxaibKhan"]
[Result "1/2-1/2"]
[WhiteElo "2281"]
[BlackElo "2399"]
[TimeControl "180+1"]
[EndTime "10:00:39 PDT"]
[Termination "Game drawn by repetition"]

1. d4 {[%clk 0:03:00.9]} 1... Nf6 {[%clk 0:02:55.5]} 2. c4 {[%clk 0:03:00.5]}
2... e6 {[%clk 0:02:53.5]} 3. Nc3 {[%clk 0:03:00.1]} 3... Bb4 {[%clk 0:02:53.7]}
4. Qc2 {[%clk 0:03:00]} 4... Nc6 {[%clk 0:02:51.4]} 5. e3 {[%clk 0:02:56.5]}
5... O-O {[%clk 0:02:50.5]} 6. Bd3 {[%clk 0:02:56.6]} 6... d6 {[%clk 0:02:50]}
7. Ne2 {[%clk 0:02:56.3]} 7... e5 {[%clk 0:02:49.1]} 8. d5 {[%clk 0:02:56]} 8...
Ne7 {[%clk 0:02:48.3]} 9. O-O {[%clk 0:02:55.1]} 9... Bxc3 {[%clk 0:02:46.5]}
10. Nxc3 {[%clk 0:02:54.3]} 10... Ng6 {[%clk 0:02:40.7]} 11. f4 {[%clk
0:02:53.9]} 11... exf4 {[%clk 0:02:31.3]} 12. exf4 {[%clk 0:02:53.3]} 12... Re8
{[%clk 0:02:17.9]} 13. Bd2 {[%clk 0:02:50.3]} 13... Ng4 {[%clk 0:02:12.3]} 14.
h3 {[%clk 0:02:44]} 14... Ne3 {[%clk 0:02:10.1]} 15. Bxe3 {[%clk 0:02:43.1]}
15... Rxe3 {[%clk 0:02:11]} 16. Bxg6 {[%clk 0:02:32.1]} 16... hxg6 {[%clk
0:02:08]} 17. Rae1 {[%clk 0:02:32.7]} 17... Bf5 {[%clk 0:01:59.5]} 18. Qf2
{[%clk 0:02:29.7]} 18... Rxe1 {[%clk 0:01:52]} 19. Rxe1 {[%clk 0:02:30.6]} 19...
Qf6 {[%clk 0:01:42.1]} 20. Qe3 {[%clk 0:02:24]} 20... Bd7 {[%clk 0:01:37.3]} 21.
Qe7 {[%clk 0:02:12.1]} 21... Qd4+ {[%clk 0:01:33]} 22. Kh1 {[%clk 0:02:08.3]}
22... Re8 {[%clk 0:01:30.4]} 23. Qh4 {[%clk 0:01:48.5]} 23... Rxe1+ {[%clk
0:01:16.5]} 24. Qxe1 {[%clk 0:01:49.4]} 24... Qxf4 {[%clk 0:01:10.1]} 25. Qe7
{[%clk 0:01:42.4]} 25... Bf5 {[%clk 0:01:06.2]} 26. Qxc7 {[%clk 0:01:40.1]}
26... Qc1+ {[%clk 0:01:04.9]} 27. Kh2 {[%clk 0:01:39.4]} 27... Qxb2 {[%clk
0:01:03.2]} 28. Qd8+ {[%clk 0:01:29.1]} 28... Kh7 {[%clk 0:00:56.1]} 29. Qh4+
{[%clk 0:01:30]} 29... Kg8 {[%clk 0:00:55]} 30. Qd8+ {[%clk 0:01:30.9]} 30...
Kh7 {[%clk 0:00:54.9]} 31. Qh4+ {[%clk 0:01:31.8]} 31... Kg8 {[%clk 0:00:54]}
32. Qd8+ {[%clk 0:01:32.7]} 1/2-1/2

[Event "Early-Titled-Tuesday-Blitz-October-24-2023"]
[Site "Chess.com"]
[Date "2023.10.24"]
[Round "11"]
[White "Sofia_Blokhin"]
[Black "Kostukov_Alex"]
[Result "0-1"]
[WhiteElo "2258"]
[BlackElo "2406"]
[TimeControl "180+1"]
[EndTime "10:00:51 PDT"]
[Termination "Kostukov_Alex won by resignation"]

1. d4 {[%clk 0:03:00.9]} 1... g6 {[%clk 0:02:57.8]} 2. e4 {[%clk 0:02:59.3]}
2... c5 {[%clk 0:02:55.8]} 3. d5 {[%clk 0:02:48.5]} 3... Bg7 {[%clk 0:02:55]} 4.
c4 {[%clk 0:02:47.4]} 4... d6 {[%clk 0:02:55.3]} 5. Nc3 {[%clk 0:02:44.8]} 5...
Nf6 {[%clk 0:02:55.8]} 6. g3 {[%clk 0:02:41.2]} 6... O-O {[%clk 0:02:56.2]} 7.
h4 {[%clk 0:02:40.8]} 7... e6 {[%clk 0:02:53.8]} 8. Bg5 {[%clk 0:02:26.7]} 8...
h6 {[%clk 0:02:52.2]} 9. Bf4 {[%clk 0:02:24.1]} 9... exd5 {[%clk 0:02:46.5]} 10.
cxd5 {[%clk 0:02:22.6]} 10... Re8 {[%clk 0:02:44.7]} 11. Bd3 {[%clk 0:02:20.8]}
11... c4 {[%clk 0:02:38.4]} 12. Bc2 {[%clk 0:02:18.7]} 12... b5 {[%clk
0:02:36.5]} 13. f3 {[%clk 0:02:13.5]} 13... a6 {[%clk 0:02:20.8]} 14. Qd2 {[%clk
0:02:12.6]} 14... h5 {[%clk 0:02:14.2]} 15. Nge2 {[%clk 0:02:05.6]} 15... Qc7
{[%clk 0:02:03.3]} 16. O-O-O {[%clk 0:02:00.3]} 16... Nbd7 {[%clk 0:02:02.8]}
17. Rdg1 {[%clk 0:01:53]} 17... Ne5 {[%clk 0:02:02.3]} 18. Nd4 {[%clk
0:01:46.9]} 18... Bd7 {[%clk 0:01:53.3]} 19. Kb1 {[%clk 0:01:38.9]} 19... Rac8
{[%clk 0:01:52.1]} 20. Bxe5 {[%clk 0:01:29]} 20... Rxe5 {[%clk 0:01:47.9]} 21.
f4 {[%clk 0:01:15.3]} 21... Ree8 {[%clk 0:01:47]} 22. f5 {[%clk 0:01:10.8]}
22... b4 {[%clk 0:01:40.5]} 23. Nce2 {[%clk 0:01:05.6]} 23... Nxe4 {[%clk
0:01:32.1]} 24. Bxe4 {[%clk 0:01:00.4]} 24... Rxe4 {[%clk 0:01:32]} 25. fxg6
{[%clk 0:00:56.9]} 25... fxg6 {[%clk 0:01:29.6]} 26. Nf3 {[%clk 0:00:51.7]}
26... Bf5 {[%clk 0:01:26.5]} 27. Ka1 {[%clk 0:00:47.3]} 27... c3 {[%clk
0:01:25.7]} 28. bxc3 {[%clk 0:00:42]} 28... Rxe2 {[%clk 0:01:25.5]} 0-1

[Event "Early-Titled-Tuesday-Blitz-October-24-2023"]
[Site "Chess.com"]
[Date "2023.10.24"]
[Round "11"]
[White "angryspacevoid"]
[Black "VOneChess"]
[Result "1-0"]
[WhiteElo "2519"]
[BlackElo "2312"]
[TimeControl "180+1"]
[EndTime "10:01:00 PDT"]
[Termination "angryspacevoid won on time"]

1. e4 {[%clk 0:02:56.4]} 1... d5 {[%clk 0:02:58.8]} 2. exd5 {[%clk 0:02:56.4]}
2... Nf6 {[%clk 0:02:58.8]} 3. d4 {[%clk 0:02:55.2]} 3... Bg4 {[%clk 0:02:58.8]}
4. f3 {[%clk 0:02:53.1]} 4... Bf5 {[%clk 0:02:58.8]} 5. c4 {[%clk 0:02:52]} 5...
e6 {[%clk 0:02:58.7]} 6. Nc3 {[%clk 0:02:51]} 6... exd5 {[%clk 0:02:56.3]} 7. g4
{[%clk 0:02:50.3]} 7... Nxg4 {[%clk 0:02:36.4]} 8. fxg4 {[%clk 0:02:41.4]} 8...
Qh4+ {[%clk 0:02:36.6]} 9. Kd2 {[%clk 0:02:38.1]} 9... Qg5+ {[%clk 0:02:36.2]}
10. Ke2 {[%clk 0:02:32.4]} 10... Bxg4+ {[%clk 0:02:36]} 11. Nf3 {[%clk
0:02:27.1]} 11... Bxf3+ {[%clk 0:02:29.8]} 12. Kxf3 {[%clk 0:02:25.7]} 12...
Qh5+ {[%clk 0:02:29.3]} 13. Kf2 {[%clk 0:02:25.6]} 13... Qh4+ {[%clk 0:02:26.5]}
14. Kg2 {[%clk 0:02:12.5]} 14... Nc6 {[%clk 0:01:22.7]} 15. cxd5 {[%clk
0:02:05.9]} 15... Nxd4 {[%clk 0:01:16.6]} 16. Qe1+ {[%clk 0:01:58.4]} 16... Be7
{[%clk 0:00:17.2]} 17. Qxh4 {[%clk 0:01:52.9]} 17... Bxh4 {[%clk 0:00:18.1]} 18.
Bf4 {[%clk 0:01:49.7]} 18... O-O-O {[%clk 0:00:16]} 19. Bd3 {[%clk 0:01:43.9]}
19... c6 {[%clk 0:00:04.6]} 20. dxc6 {[%clk 0:01:38.9]} 20... bxc6 {[%clk
0:00:03.2]} 21. Rad1 {[%clk 0:01:36.4]} 1-0

[Event "Early-Titled-Tuesday-Blitz-October-24-2023"]
[Site "Chess.com"]
[Date "2023.10.24"]
[Round "11"]
[White "GMSrinath"]
[Black "Boundless_Strike"]
[Result "0-1"]
[WhiteElo "2797"]
[BlackElo "2647"]
[TimeControl "180+1"]
[EndTime "10:01:17 PDT"]
[Termination "Boundless_Strike won by resignation"]

1. d4 {[%clk 0:03:00.9]} 1... e5 {[%clk 0:02:58.9]} 2. dxe5 {[%clk 0:03:00.5]}
2... d6 {[%clk 0:02:59.6]} 3. Nf3 {[%clk 0:02:58.3]} 3... Bg4 {[%clk 0:02:59.1]}
4. exd6 {[%clk 0:02:57.6]} 4... Bxd6 {[%clk 0:03:00]} 5. Nbd2 {[%clk 0:02:53.9]}
5... Nc6 {[%clk 0:02:57.4]} 6. g3 {[%clk 0:02:53.1]} 6... Qe7 {[%clk 0:02:57.4]}
7. Bg2 {[%clk 0:02:52.5]} 7... O-O-O {[%clk 0:02:58]} 8. O-O {[%clk 0:02:53]}
8... Nf6 {[%clk 0:02:51.4]} 9. c3 {[%clk 0:02:53.5]} 9... h5 {[%clk 0:02:50.6]}
10. Qa4 {[%clk 0:02:53.8]} 10... h4 {[%clk 0:02:50.6]} 11. Nc4 {[%clk
0:02:53.7]} 11... hxg3 {[%clk 0:02:35.6]} 12. hxg3 {[%clk 0:02:53.2]} 12... Qxe2
{[%clk 0:02:33.6]} 13. Re1 {[%clk 0:02:48]} 13... Qxf3 {[%clk 0:02:18.4]} 14.
Nxd6+ {[%clk 0:02:33.5]} 14... cxd6 {[%clk 0:01:56.2]} 15. Bg5 {[%clk
0:02:23.2]} 15... Ne5 {[%clk 0:01:33.9]} 16. Re3 {[%clk 0:01:50.4]} 16... Qf5
{[%clk 0:01:20.6]} 17. f4 {[%clk 0:01:18]} 17... Nf3+ {[%clk 0:01:02]} 18. Bxf3
{[%clk 0:01:13.5]} 18... Bxf3 {[%clk 0:01:01.4]} 19. Rxf3 {[%clk 0:01:14.1]}
19... Qh3 {[%clk 0:00:45]} 20. Kf2 {[%clk 0:01:11.3]} 20... Qh2+ {[%clk
0:00:21.8]} 21. Ke3 {[%clk 0:01:11.1]} 21... Rhe8+ {[%clk 0:00:18.5]} 0-1

[Event "Early-Titled-Tuesday-Blitz-October-24-2023"]
[Site "Chess.com"]
[Date "2023.10.24"]
[Round "11"]
[White "Chernov_Mikhail"]
[Black "ImBushchess"]
[Result "1-0"]
[WhiteElo "2408"]
[BlackElo "2250"]
[TimeControl "180+1"]
[EndTime "10:01:21 PDT"]
[Termination "Chernov_Mikhail won by resignation"]

1. e4 {[%clk 0:02:45.6]} 1... d6 {[%clk 0:02:55.6]} 2. d4 {[%clk 0:02:45.6]}
2... g6 {[%clk 0:02:55.9]} 3. Nc3 {[%clk 0:02:46.2]} 3... Bg7 {[%clk 0:02:56]}
4. Be3 {[%clk 0:02:47.1]} 4... a6 {[%clk 0:02:50.5]} 5. Qd2 {[%clk 0:02:47.1]}
5... b5 {[%clk 0:02:49.1]} 6. a4 {[%clk 0:02:47.7]} 6... b4 {[%clk 0:02:47.5]}
7. Nd1 {[%clk 0:02:48]} 7... a5 {[%clk 0:02:45.1]} 8. c3 {[%clk 0:02:47.4]} 8...
Na6 {[%clk 0:02:37.3]} 9. f3 {[%clk 0:02:46.6]} 9... Nf6 {[%clk 0:02:33.7]} 10.
Bb5+ {[%clk 0:02:44]} 10... Kf8 {[%clk 0:02:30.1]} 11. Ne2 {[%clk 0:02:44.2]}
11... Bb7 {[%clk 0:02:24.9]} 12. O-O {[%clk 0:02:42.9]} 12... c6 {[%clk
0:02:20.2]} 13. Bd3 {[%clk 0:02:41.4]} 13... c5 {[%clk 0:02:17.9]} 14. Nf2
{[%clk 0:02:39.5]} 14... Qc8 {[%clk 0:02:11]} 15. Rac1 {[%clk 0:02:29.9]} 15...
Nd7 {[%clk 0:01:40.6]} 16. f4 {[%clk 0:02:20.5]} 16... d5 {[%clk 0:01:32.4]} 17.
e5 {[%clk 0:02:16.3]} 17... c4 {[%clk 0:01:29.8]} 18. Bb1 {[%clk 0:02:13.6]}
18... b3 {[%clk 0:01:27.4]} 19. f5 {[%clk 0:02:08.1]} 19... gxf5 {[%clk
0:01:20.3]} 20. Bxf5 {[%clk 0:02:09]} 20... e6 {[%clk 0:01:13.3]} 21. Bxe6
{[%clk 0:01:49.1]} 21... fxe6 {[%clk 0:01:10.5]} 22. Ne4+ {[%clk 0:01:49.5]}
22... Kg8 {[%clk 0:01:05.4]} 23. Nd6 {[%clk 0:01:50.4]} 23... Qc7 {[%clk
0:01:00.9]} 24. Bh6 {[%clk 0:01:46.9]} 24... Nf8 {[%clk 0:00:42]} 25. Rf7 {[%clk
0:01:38.1]} 25... Qxf7 {[%clk 0:00:38.1]} 26. Nxf7 {[%clk 0:01:39]} 26... Kxf7
{[%clk 0:00:37.4]} 27. Rf1+ {[%clk 0:01:34.4]} 27... Kg8 {[%clk 0:00:35.4]} 28.
Qf4 {[%clk 0:01:29.5]} 1-0

[Event "Early-Titled-Tuesday-Blitz-October-24-2023"]
[Site "Chess.com"]
[Date "2023.10.24"]
[Round "11"]
[White "RNG2200"]
[Black "Apocalyps999"]
[Result "0-1"]
[WhiteElo "2159"]
[BlackElo "2288"]
[TimeControl "180+1"]
[EndTime "10:01:21 PDT"]
[Termination "Apocalyps999 won on time"]

1. d4 {[%clk 0:03:00.9]} 1... d5 {[%clk 0:02:39]} 2. Bg5 {[%clk 0:02:56.3]} 2...
h6 {[%clk 0:02:36.3]} 3. Bh4 {[%clk 0:02:56.2]} 3... c5 {[%clk 0:02:34.9]} 4. c3
{[%clk 0:02:56.3]} 4... Nc6 {[%clk 0:02:34.5]} 5. e3 {[%clk 0:02:56.1]} 5...
cxd4 {[%clk 0:02:34.5]} 6. exd4 {[%clk 0:02:55.8]} 6... Nf6 {[%clk 0:02:34.9]}
7. Bxf6 {[%clk 0:02:54.8]} 7... gxf6 {[%clk 0:02:34.1]} 8. g3 {[%clk 0:02:53.6]}
8... e5 {[%clk 0:02:34]} 9. Ne2 {[%clk 0:02:51.6]} 9... Bg7 {[%clk 0:02:32.3]}
10. Bg2 {[%clk 0:02:51]} 10... Be6 {[%clk 0:02:32.6]} 11. O-O {[%clk 0:02:45.3]}
11... Qb6 {[%clk 0:02:28.7]} 12. Qb3 {[%clk 0:02:33.6]} 12... exd4 {[%clk
0:02:23.1]} 13. Qxb6 {[%clk 0:02:31.5]} 13... axb6 {[%clk 0:02:23.4]} 14. Nxd4
{[%clk 0:02:26.7]} 14... Nxd4 {[%clk 0:02:23.2]} 15. cxd4 {[%clk 0:02:27]} 15...
f5 {[%clk 0:02:24.1]} 16. Rd1 {[%clk 0:02:23.9]} 16... f4 {[%clk 0:02:24.1]} 17.
Nc3 {[%clk 0:02:23.2]} 17... fxg3 {[%clk 0:02:23.4]} 18. hxg3 {[%clk 0:02:23.2]}
18... O-O-O {[%clk 0:02:14.3]} 19. Rac1 {[%clk 0:02:15.2]} 19... Kb8 {[%clk
0:02:12]} 20. Nb5 {[%clk 0:02:15.3]} 20... h5 {[%clk 0:02:08.6]} 21. Rc3 {[%clk
0:01:51.2]} 21... h4 {[%clk 0:01:56.1]} 22. gxh4 {[%clk 0:01:48.2]} 22... Rxh4
{[%clk 0:01:54.6]} 23. Rg3 {[%clk 0:00:53]} 23... Bf6 {[%clk 0:01:49.6]} 24. Rc3
{[%clk 0:00:11.8]} 24... Rg8 {[%clk 0:01:46]} 25. Kf1 {[%clk 0:00:10.7]} 25...
Rhg4 {[%clk 0:01:37.5]} 26. Rg3 {[%clk 0:00:06]} 26... Rxg3 {[%clk 0:01:37]} 27.
fxg3 {[%clk 0:00:06.9]} 27... Rxg3 {[%clk 0:01:37.5]} 28. Nc3 {[%clk 0:00:04.2]}
28... Rg5 {[%clk 0:01:30.7]} 0-1

[Event "Early-Titled-Tuesday-Blitz-October-24-2023"]
[Site "Chess.com"]
[Date "2023.10.24"]
[Round "11"]
[White "howitzer14"]
[Black "Magila31"]
[Result "1-0"]
[WhiteElo "2929"]
[BlackElo "2408"]
[TimeControl "180+1"]
[EndTime "10:01:27 PDT"]
[Termination "howitzer14 won by resignation"]

1. e4 {[%clk 0:02:55.6]} 1... g6 {[%clk 0:02:58.8]} 2. d4 {[%clk 0:02:50.2]}
2... Bg7 {[%clk 0:02:58.1]} 3. Nc3 {[%clk 0:02:48.8]} 3... d6 {[%clk 0:02:57.5]}
4. Bf4 {[%clk 0:02:48.5]} 4... Nc6 {[%clk 0:02:55.4]} 5. Nge2 {[%clk 0:02:46.3]}
5... e5 {[%clk 0:02:50.2]} 6. dxe5 {[%clk 0:02:46.3]} 6... Nxe5 {[%clk
0:02:49.2]} 7. Ng3 {[%clk 0:02:38.3]} 7... h5 {[%clk 0:02:43.7]} 8. Be2 {[%clk
0:02:29.6]} 8... h4 {[%clk 0:02:40.9]} 9. Nf1 {[%clk 0:02:30.1]} 9... h3 {[%clk
0:02:30]} 10. g3 {[%clk 0:02:28.6]} 10... Nf6 {[%clk 0:02:04.1]} 11. Qd2 {[%clk
0:02:19.6]} 11... Be6 {[%clk 0:02:00.1]} 12. O-O-O {[%clk 0:02:16.3]} 12... Nfg4
{[%clk 0:01:38.6]} 13. f3 {[%clk 0:02:09.1]} 13... Nf6 {[%clk 0:01:32.3]} 14. g4
{[%clk 0:02:05]} 14... Nfd7 {[%clk 0:01:28.9]} 15. Ne3 {[%clk 0:02:00.5]} 15...
Nb6 {[%clk 0:01:27.4]} 16. a4 {[%clk 0:01:58.7]} 16... Qd7 {[%clk 0:01:17.6]}
17. a5 {[%clk 0:01:53.5]} 17... Nbc4 {[%clk 0:01:16.9]} 18. Bxc4 {[%clk
0:01:52.6]} 18... Nxc4 {[%clk 0:01:16.9]} 19. Nxc4 {[%clk 0:01:52.9]} 19... Bxc4
{[%clk 0:01:17.1]} 20. e5 {[%clk 0:01:43.2]} 20... d5 {[%clk 0:01:09.4]} 21. b3
{[%clk 0:01:26.4]} 21... Ba6 {[%clk 0:01:08.5]} 22. Nxd5 {[%clk 0:01:17.8]}
22... O-O-O {[%clk 0:01:06.1]} 23. Qe3 {[%clk 0:01:12.3]} 23... Qe6 {[%clk
0:00:33.9]} 24. Qxa7 {[%clk 0:01:04.5]} 24... Rxd5 {[%clk 0:00:32.5]} 25. Rxd5
{[%clk 0:01:04.6]} 25... Qxd5 {[%clk 0:00:32.2]} 26. Rd1 {[%clk 0:01:05]} 1-0

[Event "Early-Titled-Tuesday-Blitz-October-24-2023"]
[Site "Chess.com"]
[Date "2023.10.24"]
[Round "11"]
[White "jcibarra"]
[Black "Sanan_Sjugirov"]
[Result "0-1"]
[WhiteElo "2918"]
[BlackElo "2958"]
[TimeControl "180+1"]
[EndTime "10:01:28 PDT"]
[Termination "Sanan_Sjugirov won by resignation"]

1. e4 {[%clk 0:03:00.9]} 1... e6 {[%clk 0:02:58.1]} 2. d4 {[%clk 0:03:00.5]}
2... d5 {[%clk 0:02:58.8]} 3. Nc3 {[%clk 0:03:00.9]} 3... Nf6 {[%clk 0:02:58.6]}
4. Bg5 {[%clk 0:03:00.4]} 4... dxe4 {[%clk 0:02:55.6]} 5. Nxe4 {[%clk
0:03:00.4]} 5... Be7 {[%clk 0:02:56]} 6. Bxf6 {[%clk 0:03:00.8]} 6... Bxf6
{[%clk 0:02:55.6]} 7. Nf3 {[%clk 0:03:00.3]} 7... O-O {[%clk 0:02:53.3]} 8. Qd2
{[%clk 0:02:58.8]} 8... Bd7 {[%clk 0:02:47.7]} 9. O-O-O {[%clk 0:02:53.3]} 9...
Bc6 {[%clk 0:02:47.5]} 10. Nxf6+ {[%clk 0:02:48.9]} 10... Qxf6 {[%clk
0:02:47.2]} 11. Ne5 {[%clk 0:02:49.5]} 11... Nd7 {[%clk 0:02:41.8]} 12. Nxd7
{[%clk 0:02:28.4]} 12... Bxd7 {[%clk 0:02:35.2]} 13. f4 {[%clk 0:02:28.4]} 13...
Rfd8 {[%clk 0:02:33.9]} 14. Qe3 {[%clk 0:02:27.7]} 14... Bc6 {[%clk 0:02:31]}
15. Rg1 {[%clk 0:02:27.6]} 15... Rd7 {[%clk 0:02:24.2]} 16. g4 {[%clk
0:02:17.7]} 16... Rad8 {[%clk 0:02:23.9]} 17. c3 {[%clk 0:02:13.4]} 17... Bd5
{[%clk 0:02:22.3]} 18. Bb5 {[%clk 0:01:58.6]} 18... c6 {[%clk 0:02:21.6]} 19.
Bd3 {[%clk 0:01:51.8]} 19... Bxa2 {[%clk 0:02:16.9]} 20. g5 {[%clk 0:01:41.6]}
20... Qe7 {[%clk 0:02:16.8]} 21. Rg3 {[%clk 0:01:25.5]} 21... g6 {[%clk
0:02:12.8]} 22. Bc2 {[%clk 0:01:13.1]} 22... c5 {[%clk 0:02:08.9]} 23. dxc5
{[%clk 0:01:11.9]} 23... Rxd1+ {[%clk 0:02:08.6]} 24. Bxd1 {[%clk 0:01:12.8]}
24... Qd7 {[%clk 0:02:08]} 25. Bc2 {[%clk 0:01:08.2]} 25... Qd5 {[%clk
0:02:07.5]} 26. Rg1 {[%clk 0:01:04.5]} 26... Bb3 {[%clk 0:02:06.6]} 27. Bxb3
{[%clk 0:00:38.5]} 27... Qxb3 {[%clk 0:02:06.3]} 28. Qe2 {[%clk 0:00:36.3]}
28... Qa4 {[%clk 0:02:01.9]} 29. Qe3 {[%clk 0:00:25.3]} 29... Rd5 {[%clk
0:01:53.5]} 30. Kb1 {[%clk 0:00:20]} 30... Qc4 {[%clk 0:01:48.4]} 31. c6 {[%clk
0:00:15.8]} 31... bxc6 {[%clk 0:01:46.4]} 32. Qxa7 {[%clk 0:00:15.4]} 32... Qxf4
{[%clk 0:01:36.3]} 33. Qa8+ {[%clk 0:00:12.5]} 33... Kg7 {[%clk 0:01:36.2]} 34.
Qxc6 {[%clk 0:00:13.1]} 34... Qe4+ {[%clk 0:01:35.5]} 0-1

[Event "Early-Titled-Tuesday-Blitz-October-24-2023"]
[Site "Chess.com"]
[Date "2023.10.24"]
[Round "11"]
[White "cristiano78"]
[Black "giomar27"]
[Result "0-1"]
[WhiteElo "2251"]
[BlackElo "2365"]
[TimeControl "180+1"]
[EndTime "10:01:28 PDT"]
[Termination "giomar27 won by resignation"]

1. d4 {[%clk 0:03:00]} 1... Nf6 {[%clk 0:02:59.9]} 2. c4 {[%clk 0:03:00.9]} 2...
c5 {[%clk 0:03:00.5]} 3. d5 {[%clk 0:03:00.9]} 3... b5 {[%clk 0:03:00.9]} 4.
cxb5 {[%clk 0:02:59.9]} 4... a6 {[%clk 0:03:01.4]} 5. bxa6 {[%clk 0:03:00.8]}
5... g6 {[%clk 0:03:01.9]} 6. Nc3 {[%clk 0:03:01.7]} 6... Bg7 {[%clk 0:03:02.4]}
7. g3 {[%clk 0:03:01.4]} 7... d6 {[%clk 0:03:00.4]} 8. Bg2 {[%clk 0:03:01.8]}
8... Nbd7 {[%clk 0:02:59.1]} 9. Nf3 {[%clk 0:03:02.1]} 9... Bxa6 {[%clk
0:02:54]} 10. O-O {[%clk 0:03:01.8]} 10... Nb6 {[%clk 0:02:53.9]} 11. Qd2 {[%clk
0:02:46.8]} 11... Bc4 {[%clk 0:02:39.1]} 12. Nh4 {[%clk 0:02:44]} 12... O-O
{[%clk 0:02:36.3]} 13. Re1 {[%clk 0:02:43.5]} 13... Nfd7 {[%clk 0:02:34.9]} 14.
e4 {[%clk 0:02:35]} 14... Ne5 {[%clk 0:02:32.5]} 15. b3 {[%clk 0:02:24.2]} 15...
Bxb3 {[%clk 0:01:56.3]} 16. Bb2 {[%clk 0:02:03.5]} 16... Nec4 {[%clk 0:01:47]}
17. Qe2 {[%clk 0:02:03.5]} 17... Nxb2 {[%clk 0:01:43.6]} 18. Qxb2 {[%clk
0:02:03.1]} 18... Na4 {[%clk 0:01:37]} 19. Qxb3 {[%clk 0:01:59.1]} 19... Bxc3
{[%clk 0:01:36.9]} 20. Rac1 {[%clk 0:01:52.1]} 20... Bxe1 {[%clk 0:01:36.6]} 21.
Rxe1 {[%clk 0:01:52]} 21... Qa5 {[%clk 0:01:37.1]} 22. Qe3 {[%clk 0:01:45.4]}
22... Qc3 {[%clk 0:01:34.2]} 23. Qe2 {[%clk 0:01:42.4]} 23... Rfb8 {[%clk
0:01:31.2]} 24. e5 {[%clk 0:01:37.9]} 24... Rb2 {[%clk 0:01:12.4]} 25. Qd1
{[%clk 0:01:30.2]} 25... Qd2 {[%clk 0:01:07.8]} 26. exd6 {[%clk 0:01:21]} 26...
Qxd1 {[%clk 0:01:05.4]} 27. Rxd1 {[%clk 0:01:21]} 27... exd6 {[%clk 0:01:05.5]}
28. Nf3 {[%clk 0:01:11.6]} 28... Nc3 {[%clk 0:01:05.1]} 29. Re1 {[%clk
0:01:11.4]} 29... Raxa2 {[%clk 0:01:00.5]} 30. Ng5 {[%clk 0:01:01]} 30... Re2
{[%clk 0:00:56.5]} 31. Rc1 {[%clk 0:00:55.2]} 31... Rxf2 {[%clk 0:00:46.8]} 0-1